Cogmind - Beta 14 @@@ ROGUE MODE // 2025.04.09 @ 20:45:09 Player: IEP Result: Destroyed by Y-45 Defender with Beam Rifle Performance ------------- Evolutions (1) 500 Regions Visited (3) 600 Robots Destroyed (14) 70 Value Destroyed (245) 245 Prototype IDs (1) 20 Alien Tech Used (0) 0 Bonus (0) 0 TOTAL SCORE: 1435 Bonus ------- None Cogmind --------- Core Integrity 0/400 Matter 289/300 Energy 100/100 System Corruption 0% Temperature Cool (9) Movement Core (100) Ox1 Location -9/Materials Parts ------- > --- POWER (1) -------- (None) > --- PROPULSION (4) --- (None) > --- UTILITY (2) ------ Small Storage Unit Signal Interpreter > --- WEAPON (2) ------- Light Assault Rifle > --- INVENTORY (8) ---- Heat Sink Targeting Computer Mining Laser Hammer Peak State ------------ > --- POWER ------------ Light Nuclear Core > --- PROPULSION ------- Aluminum Leg Aluminum Leg > --- UTILITY ---------- Small Storage Unit Signal Interpreter > --- WEAPON ----------- Improved Medium Laser Assault Rifle > --- INVENTORY -------- Ion Engine Light Ion Engine Heat Sink Targeting Computer EM Shotgun EM Shotgun Datajack Hammer [Rating: 12] Favorites ----------- Power Light Nuclear Core Engine Light Ion Engine Power Core Light Nuclear Core Propulsion Aluminum Leg Leg Aluminum Leg Utility Small Storage Unit Storage Small Storage Unit Processor Signal Interpreter Weapon Assault Rifle Energy Gun Small Laser Ballistic Gun Assault Rifle Build | -11 -10 -10 -9 ------- Run | Yrd Mat Min Mat Slots Evolved 2 | . . . 2 Power . | . . . . Propulsion 2 | . . . 2 Utility . | . . . . Weapon . | . . . . Parts Attached 18 | 6 6 2 4 Power 4 | 1 1 2 . Engine 3 | 1 . 2 . Core 1 | . 1 . . Reactor . | . . . . Propulsion 4 | 2 2 . . Treads . | . . . . Leg 4 | 2 2 . . Wheel . | . . . . Hover . | . . . . Flight . | . . . . Utility 2 | 1 1 . . Device . | . . . . Storage 1 | 1 . . . Processor 1 | . 1 . . Hackware . | . . . . Protection . | . . . . Artifact . | . . . . Weapon 8 | 2 2 . 4 Energy Gun 5 | 2 1 . 2 Energy Cannon . | . . . . Ballistic Gun 3 | . 1 . 2 Ballistic Cannon . | . . . . Launcher . | . . . . Special Weapon . | . . . . Impact Weapon . | . . . . Slashing Weapon . | . . . . Piercing Weapon . | . . . . Special Melee Weapon . | . . . . Unidentified Prototypes 1 | . 1 . . Parts Lost 9 | . . 1 8 Power 2 | . . 1 1 Propulsion 2 | . . . 2 Utility . | . . . . Weapon 5 | . . . 5 Highest Loss Streak 8 | . . 1 8 To Critical Strikes . | . . . . Average Slot Usage (%) 95 | . 99 100 64 Engine 6 | . 5 8 8 Core 6 | . 8 5 . Leg 26 | . 28 28 15 Storage 13 | . 14 14 11 Processor 13 | . 13 14 11 Energy Gun 16 | . 18 14 10 Ballistic Gun 10 | . 9 14 9 Peak Build Rating 12 | 6 12 12 10 Average Rating 8 | 4 8 10 7 On Entrance 7 | . 6 12 10 Naked Turns . | . . . . Heaviest Build 15 | 13 15 15 14 Greatest Support 20 | 20 20 20 20 Greatest Overweight (x) 3 | 3 1 . 1 Average Overweight (x) . | . . . . Largest Inventory Capacity 8 | 8 8 8 8 Average Capacity 7 | 7 8 8 8 Most Carried 8 | 4 8 8 8 Average Carried 6 | 1 6 7 6 Final Capacity 8 | 8 8 8 8 Final Carried 8 | 2 8 8 4 Class Distribution -------------------- 100% | Mutant Dominant Class ---------------- Mutant | -10/Materials Mutant | -10/Mines Mutant | -9/Materials Resources | -11 -10 -10 -9 ----------- Run | Yrd Mat Min Mat Matter Collected 414 | 225 77 99 13 Remotely . | . . . . Salvage Created 370 | . 128 110 132 Parts 26 | . 7 10 9 Haulers Intercepted . | . . . . Recyclers Shooed 1 | . . 1 . Parts Field Recycled . | . . . . Retrieved Matter . | . . . . Parts Self-Destructed . | . . . . Prevented . | . . . . Kills | -11 -10 -10 -9 ------- Run | Yrd Mat Min Mat Combat Hostiles Destroyed 13 | . 3 8 2 Guns 13 | . 3 8 2 Classes Destroyed 3 | . 1 1 1 Recycler 1 | . . . 1 Swarmer 9 | . . 8 1 Grunt 4 | . 3 . 1 Best Kill Streak 3 | . 1 3 3 Combat Bots Only 3 | . 1 3 1 Max Kills in Single Turn 1 | . 1 1 1 Gunslinging . | . . . . Exploded . | . . . . Melee . | . . . . Uniques/NPCs Destroyed . | . . . . Combat | -11 -10 -10 -9 -------- Run | Yrd Mat Min Mat Hostile Shots Fired 203 | . 29 61 113 Missed 64 | . 7 18 39 Damage Taken 1570 | . 289 348 933 Core 505 | . 37 67 401 Absorbed by Shields . | . . . . Core Remaining (%) 79 | 100 . 58 . Volleys Fired 52 | . 17 22 13 Largest 2 | . 2 2 2 Hottest 112 | . 90 76 112 Shots Fired 92 | . 30 44 18 Gun 92 | . 30 44 18 Cannon . | . . . . Launcher . | . . . . Special . | . . . . Kinetic 35 | . 4 22 9 Thermal 55 | . 26 22 7 Explosive . | . . . . Electromagnetic 2 | . . . 2 Robot Hit Streak 6 | . 6 2 3 Robot Miss Streak 7 | . 3 7 5 Penetration Max . | . . . . Secondary Targets 2 | . 1 1 . Max Gunslinging Chain 1 | . 1 1 . Shots Hit Robots 44 | . 21 15 8 Core Hits 19 | . 7 8 4 Critical Kills . | . . . . Critical Parts Destroyed . | . . . . Critical Strikes 1 | . . . 1 Burn 1 | . . . 1 Melee Attacks . | . . . . Impact . | . . . . Slashing . | . . . . Piercing . | . . . . Sneak Attacks . | . . . . Combat Hostiles . | . . . . Follow-up Attacks . | . . . . Damage Inflicted 702 | . 263 225 214 Guns 615 | . 263 221 131 Cannons . | . . . . Explosions 83 | . . . 83 Melee . | . . . . Ramming 4 | . . 4 . Kinetic 192 | . 52 83 57 Thermal 495 | . 211 138 146 Explosive . | . . . . Electromagnetic 11 | . . . 11 Impact . | . . . . Slashing . | . . . . Piercing . | . . . . Highest Corruption . | . . . . Average Corruption . | . . . . Corruption Purged . | . . . . Corruption Blocked . | . . . . Overload Shots . | . . . . Overflow Damage 10 | . . . 10 Projectiles . | . . . . Explosions 10 | . . . 10 Melee . | . . . . Knockbacks . | . . . . Impact . | . . . . Kinetic . | . . . . Secondary . | . . . . Self-Inflicted Damage . | . . . . Shots . | . . . . Rammed . | . . . . Targets Rammed 1 | . . 1 . Kicked 1 | . . 1 . Crushed . | . . . . Highest Temperature 483 | . 483 152 163 Average Temperature 125 | . 234 50 79 Received Heat Transfer 438 | . 177 . 261 Effects 4 | . 4 . . Shutdowns 1 | . 1 . . Energy Bleed 1 | . 1 . . Short Circuit 1 | . 1 . . Damage (minor) 1 | . 1 . . Siege Activations . | . . . . Robots Corrupted . | . . . . Combat Hostiles . | . . . . Parts Fried . | . . . . Impact Corruptions . | . . . . Robots Melted . | . . . . Combat Hostiles . | . . . . Parts Melted 3 | . 2 1 . Heat Transferred 1176 | . 558 296 322 Parts Sabotaged . | . . . . Parts Stolen . | . . . . Parts Stripped . | . . . . Power Chain Reactions 1 | . . . 1 Alert | -11 -10 -10 -9 ------- Run | Yrd Mat Min Mat Peak Influence 195 | . 99 195 106 Initial 76 | . . . 76 Average 72 | . 49 112 84 Maximum Alert Level . | . . . . Low Security (%) 100 | 100 100 100 100 Level 1 . | . . . . Level 2 . | . . . . Level 3 . | . . . . Level 4 . | . . . . Level 5 . | . . . . High Security . | . . . . Max Security . | . . . . Squads Dispatched 1 | . 1 . . Investigation . | . . . . Extermination . | . . . . Reinforcement 1 | . 1 . . Assault . | . . . . Garrison . | . . . . Intercept . | . . . . Searches Triggered . | . . . . Construction Impeded . | . . . . Haulers Reinforced . | . . . . Active Scanning Responses . | . . . . Cargo Convoy Interrupts . | . . . . Stealth | -11 -10 -10 -9 --------- Run | Yrd Mat Min Mat Distress Signals . | . . . . Communications Jammed . | . . . . Distress Signals . | . . . . Times Spotted 20 | . 4 10 6 Peak Tracking Total 6 | . 2 3 6 Tactical Retreats 1 | . . 1 . Traps | -11 -10 -10 -9 ------- Run | Yrd Mat Min Mat Traps Triggered . | . . . . Indirectly . | . . . . Trap Hack Attempts . | . . . . Triggered . | . . . . Disarmed . | . . . . Reprogrammed . | . . . . Reused . | . . . . Traps Extracted . | . . . . Installed . | . . . . Triggered . | . . . . Most Traps Carried 1 | . . 1 1 Machines | -11 -10 -10 -9 ---------- Run | Yrd Mat Min Mat Machines Disabled . | . . . . Max in Single Turn . | . . . . Machines Repaired . | . . . . Machines Dismantled . | . . . . Machines Sabotaged . | . . . . Overloaded Fab Kills . | . . . . Hacking | -11 -10 -10 -9 --------- Run | Yrd Mat Min Mat Machines Accessed 1 | . 1 . . Terminals 1 | . 1 . . Fabricators . | . . . . Repair Stations . | . . . . Recycling Units . | . . . . Scanalyzers . | . . . . Garrison Access . | . . . . Total Hacks 1 | . 1 . . Successful 1 | . 1 . . Failed . | . . . . Catastrophic . | . . . . Database Lockouts . | . . . . Manual . | . . . . Terminals 1 | . 1 . . Fabricators . | . . . . Repair Stations . | . . . . Recycling Units . | . . . . Scanalyzers . | . . . . Garrison Access . | . . . . Terminal Hacks 1 | . 1 . . Emergency Access Points 1 | . 1 . . Fabricator Hacks . | . . . . Repair Station Hacks . | . . . . Recycling Unit Hacks . | . . . . Scanalyzer . | . . . . Garrison Access Hacks . | . . . . Unauthorized Hacks . | . . . . Terminals . | . . . . Fabricators . | . . . . Repair Stations . | . . . . Recycling Units . | . . . . Scanalyzers . | . . . . Garrison Access . | . . . . Data Cores Recovered . | . . . . Used . | . . . . Hacking Detections 1 | . 1 . . Full Trace Events . | . . . . Feedback Events . | . . . . Feedback Blocked . | . . . . Robot Schematics Acquired . | . . . . Robots Built . | . . . . Authchips . | . . . . Time . | . . . . Total Robot Build Rating . | . . . . Part Schematics Acquired . | . . . . Parts Built . | . . . . Authchips . | . . . . Time . | . . . . Total Part Build Rating . | . . . . Parts Repaired . | . . . . Time . | . . . . Parts Recycled . | . . . . Recycled Matter . | . . . . Retrieved Matter . | . . . . Retrieved Components . | . . . . Parts Scanalyzed . | . . . . Part Schematics Acquired . | . . . . Parts Damaged . | . . . . Bothacking | -11 -10 -10 -9 ------------ Run | Yrd Mat Min Mat Used RIF Installer . | . . . . Robots Hacked . | . . . . Non-combat . | . . . . Combat . | . . . . Robot Hacks Applied . | . . . . Relay Couplers Released . | . . . . Fabnet Peak Effective % . | . . . . Robots Rewired . | . . . . Allies Hacked . | . . . . Hacks Repelled . | . . . . Allies | -11 -10 -10 -9 -------- Run | Yrd Mat Min Mat Total Allies . | . . . . Largest Group . | . . . . Highest-Rated Group . | . . . . Highest-Rated Ally . | . . . . Total Orders . | . . . . Ally Attacks . | . . . . Total Damage . | . . . . Kills . | . . . . Allies Corrupted . | . . . . Allies Melted . | . . . . Intel | -11 -10 -10 -9 ------- Run | Yrd Mat Min Mat Robot Analysis Total . | . . . . Derelict Logs Recovered 1 | . . 1 . Drone Launches . | . . . . Drone Recoveries . | . . . . Exploration | -11 -10 -10 -9 ------------- Run | Yrd Mat Min Mat Turns Passed 1033 | 57 505 363 108 Spaces Moved 599 | 31 281 226 61 Core 13 | 9 . . 4 Treads . | . . . . Legs 586 | 22 281 226 57 Wheels . | . . . . Hover . | . . . . Flight . | . . . . Fastest Speed 50 | 50 120 120 100 Average Speed 136 | 133 153 120 119 Slowest Speed 200 | 200 190 120 190 Overloaded Moves . | . . . . Propulsion Burnouts . | . . . . Robots Hopped . | . . . . Cave-ins Triggered . | . . . . Exploration Rate (%) 24 | 3 32 50 11 Regions Visited 3 Branch Regions 1 Pre-discovered Areas . | . . . . Known Exits Taken 2 | . 1 1 . Unknown Exits Taken 1 | 1 . . . Scrap Searched 1 | . . 1 . Spaces Dug . | . . . . Terrain Destroyed 2 | . . . 2 Melee . | . . . . Projectile . | . . . . AOE 2 | . . . 2 Terrain Rammed . | . . . . Walls Destroyed . | . . . . Machines Disabled . | . . . . Actions | -11 -10 -10 -9 --------- Run | Yrd Mat Min Mat Total 728 | 46 326 276 80 Wait 27 | 2 5 20 . Move 596 | 30 280 225 61 Hop . | . . . . Pick Up 24 | 8 12 3 1 Fast Attach . | . . . . Attach 12 | 6 1 1 4 Detach . | . . . . Swap 6 | . 5 1 . Drop 10 | . 6 3 1 Fire 52 | . 17 22 13 Melee . | . . . . Ram . | . . . . Kick 1 | . . 1 . Crush . | . . . . Escape Stasis . | . . . . Rewire . | . . . . Trap . | . . . . Miscellaneous . | . . . . Route ------- -11/Scrapyard -10/Materials -10/Mines -9/Materials History --------- Turn | Location | Event 18 | -11/Scrapyard | Discovered new exit (range 16) 58 | -11/Scrapyard | Entered Materials 314 | -10/Materials | Build established: Mutant 521 | -10/Materials | Discovered new exit (range 7) 552 | -10/Materials | Identified exit to Mines 563 | -10/Materials | Entered Mines 663 | -10/Mines | Found a hidden stash of uninstalled traps 789 | -10/Mines | Identified exit to Materials 926 | -10/Mines | Entered Materials 926 | -9/Materials | Evolved 2 slots: Propulsion x2 1020 | -9/Materials | Core integrity fell below 50% 1029 | -9/Materials | Core integrity fell below 20% 1034 | -9/Materials | Destroyed by Y-45 Defender with Beam Rifle Last Messages --------------- 01016_ S-10 Pest destroyed. 01016_ U-05 Engineer lays Concrete. 01016_ M-13 Machinist fits Backup Power I on S-10 Pest. 01017_ U-05 Engineer lays Concrete. 01018_ Critical hit (Burn: +37). 01018_ Lgt. Assault Rifle destroyed. 01018_ U-05 Engineer lays Concrete. 01020_ Acquired Lgt. Assault Rifle. 01021_ U-05 Engineer builds a Wall. 01021_ U-05 Engineer lays Concrete. 01022_ R-06 Scavenger collects Com. Wheel. 01022_ U-05 Engineer lays Concrete. 01024_ U-05 Engineer builds a Wall. 01024_ Acquired 13 matter. 01027_ U-05 Engineer lays Concrete. 01027_ R-06 Scavenger collects Tractor Beam. 01028_ U-05 Engineer lays Concrete. 01030_ R-06 Scavenger collects Heat Sink. 01032_ M-13 Machinist repairs U-05 Engineer. 01033_ R-06 Scavenger collects Aluminum Leg. Map ----- +----------------------------------------------------+ | ?????????????????????????????????????????????????? | | ?????????????????????????????????????????????????? | | ?????????????????????????????????????????????????? | | ?????????????????????????????????????????????????? | | ?????????????????????????????????????????????????? | | ?????????????????????????????????????????????????? | | ?????????????????????????????????????????????????? | | ?????????????????????????????????????????????????? | | ?????????????????????????????????????????????????? | | ?????????????????????????????????????????????????? | | ?????????????????????????????????????????????????? | | ?????????????????????????????????????????????????? | | ?????????????????????????????????????????????????? | | ?????????????????????????????????????????????????? | | ?????????????????????????????????????????????????? | | ?????????????????????????????????????????? ????? | | ????????????????????????????????????????? ????? | | ????????????????????????????????????????? ????? | | ?????????????????????????????????????????# ????? | | ?????????????????????????????????????????# #???? | | ?????????????????????????????????????????# ##??? | | ????????????#######?????????????????????? +??? | | ??????????? ????????????????????# ^#???? | | ??????????a ??????????????????#^ #???? | | ?????????? ################### #???? | | ?????????? um*r@ Y ##??? | | ?????????? rs= &Y +??? | | ?????????? ### Y #???? | | ???????????????????####################/### #???? | | ????????????????????????????????# ## ## | | ????????????????????????????????# ## | | ????????????????????????????????# ## ### | | ????????????????????????????????# ## #????? | | ????????????????????????????????#[ + #????? | | ????????????????????????????????# ## #????? | | ????????????????????????????????# ## #????? | | ????????????????????????????????# ## #????? | | ????????????????????????????????# ##+###### | | ????????????????????????????????########## | | ?????????????????????????????????????????# """ """ | | ?????????????????????????????????????????# """ """ | | ?????????????????????????????????????????# """ """ | | ?????????????????????????????????????????# | | ?????????????????????????????????????????# | | ?????????????????????????????????????????#######+# | | ?????????????????????????????????????????????# | | ?????????????????????????????????????????????# | | ?????????????????????????????????????????????# | | ?????????????????????????????????????????????# | | ?????????????????????????????????????????????# | +----------------------------------------------------+ Best States ------------- Heat Dissipation 28 Energy Generation 14 Energy Capacity 250 Matter Stores 300 Matter Capacity 300 Sight Range 16 Terrain Scan Density 10 Evasion (%) 55 Item Schematics ----------------- None Robot Schematics ------------------ None Fabricated ------------ Nothing Alien Tech Used ----------------- None Achievements -------------- None Challenges ------------ None Game ------ Seed MappingFlightBoomstick Manual? 0 Play Time 00:12:55 Cumulative 24.2 hours Start 2025.04.09 @ 20:24:00 End 2025.04.09 @ 20:45:09 Sessions 1 Manual Loads 0 Difficulty Rogue Special Mode None Game No. 38 Rogue 38 Adventurer 0 Explorer 0 Win Type - Total 0 Types 0/0/0/0/0/0/0/0/0 Lore% 11 Gallery% 21 Achievement% 16 Wizard Run 0 Options --------- Layout 0 ASCII 0 Keyboard 0 Movement Mouse Keybinds 0 Fullscreen 2 Font 24/Smallcaps Map View 76x50 Zoom Use 0% Tactical HUD 1 Map Filters NONE Filters NONE Steam 1 RUN: b398981b-8530-4327-a465-5e9990691b95